[Event "Titled Tuesday Blitz October 25 Late 2022"]
[White "Sanal, Vahap"]
[Black "Bilan, Danila"]
[WhiteFideId "6300545"]
[BlackFideId "24161918"]
[WhiteElo "2574"]
[BlackElo "2203"]
[Result "1-0"]
[Round "03"]
[TimeControl "180+1"]
[Date "2022.10.26"]
[WhiteClock "0:00:47"]
[BlackClock "0:00:04"]

1. Nc3 {[%clk 0:03:00]}  d5 {[%clk 0:02:54]} 2. Nf3 {[%clk 0:02:59]}  c5 {[%clk 0:02:51]} 3. e4 {[%clk 0:02:55]}  d4 {[%clk 0:02:46]} 4. Bb5+ {[%clk 0:02:54]}  Bd7 {[%clk 0:02:46]} 5. Bxd7+ {[%clk 0:02:54]}  Qxd7 {[%clk 0:02:44]} 6. Ne2 {[%clk 0:02:55]}  Nc6 {[%clk 0:02:33]} 7. O-O {[%clk 0:02:54]}  e5 {[%clk 0:02:26]} 8. d3 {[%clk 0:02:54]}  g6 {[%clk 0:02:25]} 9. Nd2 {[%clk 0:02:54]}  Bg7 {[%clk 0:02:24]} 10. a4 {[%clk 0:02:51]}  Nge7 {[%clk 0:02:22]} 11. Nc4 {[%clk 0:02:51]}  O-O {[%clk 0:02:21]} 12. f4 {[%clk 0:02:51]}  f5 {[%clk 0:02:21]} 13. Ng3 {[%clk 0:02:49]}  Rae8 {[%clk 0:02:08]} 14. Bd2 {[%clk 0:02:42]}  b6 {[%clk 0:01:49]} 15. Qe2 {[%clk 0:02:38]}  fxe4 {[%clk 0:01:42]} 16. Nxe4 {[%clk 0:02:38]}  Nd5 {[%clk 0:01:33]} 17. fxe5 {[%clk 0:02:38]}  Nxe5 {[%clk 0:01:26]} 18. Nxe5 {[%clk 0:02:36]}  Rxf1+ {[%clk 0:01:06]} 19. Rxf1 {[%clk 0:02:35]}  Rxe5 {[%clk 0:01:04]} 20. b3 {[%clk 0:02:30]}  Rf5 {[%clk 0:00:46]} 21. Re1 {[%clk 0:02:21]}  h6 {[%clk 0:00:37]} 22. h3 {[%clk 0:02:16]}  Kh7 {[%clk 0:00:35]} 23. Rf1 {[%clk 0:02:06]}  Rxf1+ {[%clk 0:00:29]} 24. Qxf1 {[%clk 0:02:06]}  Be5 {[%clk 0:00:17]} 25. Qf8 {[%clk 0:02:05]}  Bg7 {[%clk 0:00:14]} 26. Qf3 {[%clk 0:02:04]}  Qf5 {[%clk 0:00:12]} 27. Qxf5 {[%clk 0:02:04]}  gxf5 {[%clk 0:00:12]} 28. Nd6 {[%clk 0:02:05]}  Ne7 {[%clk 0:00:11]} 29. Nb5 {[%clk 0:02:01]}  Nc6 {[%clk 0:00:10]} 30. Kf2 {[%clk 0:01:57]}  Kg6 {[%clk 0:00:10]} 31. Bf4 {[%clk 0:01:57]}  Kf7 {[%clk 0:00:10]} 32. Nd6+ {[%clk 0:01:54]}  Ke6 {[%clk 0:00:10]} 33. Ne8 {[%clk 0:01:52]}  Bf8 {[%clk 0:00:09]} 34. Nc7+ {[%clk 0:01:53]}  Kd7 {[%clk 0:00:08]} 35. Nb5 {[%clk 0:01:54]}  a6 {[%clk 0:00:07]} 36. Na3 {[%clk 0:01:55]}  Ke6 {[%clk 0:00:05]} 37. Bc7 {[%clk 0:01:52]}  b5 {[%clk 0:00:02]} 38. axb5 {[%clk 0:01:52]}  axb5 {[%clk 0:00:03]} 39. Nxb5 {[%clk 0:01:53]}  Nb4 {[%clk 0:00:03]} 40. Na3 {[%clk 0:01:48]}  Be7 {[%clk 0:00:04]} 41. Ba5 {[%clk 0:01:41]}  Nd5 {[%clk 0:00:04]} 42. Nc4 {[%clk 0:01:40]}  Bh4+ {[%clk 0:00:03]} 43. Kf3 {[%clk 0:01:40]}  Bg5 {[%clk 0:00:03]} 44. Bd2 {[%clk 0:01:40]}  Bxd2 {[%clk 0:00:03]} 45. Nxd2 {[%clk 0:01:40]}  Nb4 {[%clk 0:00:04]} 46. Ke2 {[%clk 0:01:33]}  Nxc2 {[%clk 0:00:04]} 47. Nc4 {[%clk 0:01:31]}  Nb4 {[%clk 0:00:04]} 48. Nd2 {[%clk 0:01:30]}  Nc2 {[%clk 0:00:04]} 49. Nc4 {[%clk 0:01:27]}  Nb4 {[%clk 0:00:04]} 50. Kd2 {[%clk 0:01:28]}  Kd5 {[%clk 0:00:04]} 51. Nb6+ {[%clk 0:01:28]}  Ke5 {[%clk 0:00:04]} 52. Nd7+ {[%clk 0:01:28]}  Kf4 {[%clk 0:00:04]} 53. Nxc5 {[%clk 0:01:24]}  Kg3 {[%clk 0:00:05]} 54. Ne6 {[%clk 0:01:24]}  Nc6 {[%clk 0:00:05]} 55. Ng7 {[%clk 0:01:22]}  f4 {[%clk 0:00:05]} 56. Nh5+ {[%clk 0:01:18]}  Kxg2 {[%clk 0:00:03]} 57. Nxf4+ {[%clk 0:01:19]}  Kg3 {[%clk 0:00:03]} 58. Nd5 {[%clk 0:01:19]}  Kxh3 {[%clk 0:00:04]} 59. b4 {[%clk 0:01:20]}  Kg2 {[%clk 0:00:04]} 60. b5 {[%clk 0:01:21]}  Nb8 {[%clk 0:00:04]} 61. b6 {[%clk 0:01:21]}  h5 {[%clk 0:00:05]} 62. Nf4+ {[%clk 0:01:22]}  Kf3 {[%clk 0:00:05]} 63. Nxh5 {[%clk 0:01:22]}  Kg4 {[%clk 0:00:04]} 64. Nf6+ {[%clk 0:00:53]}  Kf5 {[%clk 0:00:05]} 65. Ne4 {[%clk 0:00:53]}  Ke5 {[%clk 0:00:05]} 66. Kc2 {[%clk 0:00:54]}  Kd5 {[%clk 0:00:06]} 67. Nd2 {[%clk 0:00:55]}  Kc5 {[%clk 0:00:04]} 68. Nc4 {[%clk 0:00:54]}  Nc6 {[%clk 0:00:04]} 69. Kb3 {[%clk 0:00:53]}  Nb8 {[%clk 0:00:02]} 70. Ka4 {[%clk 0:00:54]}  Kc6 {[%clk 0:00:02]} 71. Ka5 {[%clk 0:00:53]}  Kc5 {[%clk 0:00:03]} 72. Ne5 {[%clk 0:00:51]}  Kd5 {[%clk 0:00:03]} 73. Nf7 {[%clk 0:00:46]}  Kc5 {[%clk 0:00:02]} 74. Nd8 {[%clk 0:00:47]}  Kd6 {[%clk 0:00:02]} 75. Kb5 {[%clk 0:00:46]}  Kd7 {[%clk 0:00:02]} 76. Nb7 {[%clk 0:00:46]}  Ke7 {[%clk 0:00:01]} 77. Na5 {[%clk 0:00:46]}  Ke6 {[%clk 0:00:01]} 78. Nc6 {[%clk 0:00:46]}  Nd7 {[%clk 0:00:02]} 79. b7 {[%clk 0:00:45]}  Kf5 {[%clk 0:00:01]} 80. b8=Q {[%clk 0:00:46]}  Nxb8 {[%clk 0:00:02]} 81. Nxb8 {[%clk 0:00:46]}  Kf4 {[%clk 0:00:03]} 82. Kc4 {[%clk 0:00:47]}  Ke3 {[%clk 0:00:04]} 83. Nc6 {[%clk 0:00:47]} 1-0


[Site "https://www.chess.com"]

[Event "Titled Tuesday Blitz October 25 Late 2022"]
[White "Shipov, Sergei"]
[Black "Jobava, Baadur"]
[WhiteFideId "4113624"]
[BlackFideId "13601520"]
[WhiteElo "2744"]
[BlackElo "2582"]
[Result "0-1"]
[Round "03"]
[TimeControl "180+1"]
[Date "2022.10.26"]
[WhiteClock "0:00:09"]
[BlackClock "0:00:10"]

1. d4 {[%clk 0:03:00]}  d5 {[%clk 0:03:00]} 2. c4 {[%clk 0:03:01]}  dxc4 {[%clk 0:03:01]} 3. Nf3 {[%clk 0:03:00]}  Nf6 {[%clk 0:03:02]} 4. e3 {[%clk 0:03:01]}  Bg4 {[%clk 0:03:02]} 5. Bxc4 {[%clk 0:03:00]}  e6 {[%clk 0:03:02]} 6. h3 {[%clk 0:03:00]}  Bh5 {[%clk 0:03:03]} 7. g4 {[%clk 0:03:00]}  Bg6 {[%clk 0:03:03]} 8. Ne5 {[%clk 0:03:00]}  Nbd7 {[%clk 0:03:02]} 9. Nxg6 {[%clk 0:03:00]}  hxg6 {[%clk 0:03:03]} 10. Nc3 {[%clk 0:02:43]}  c6 {[%clk 0:03:01]} 11. Qf3 {[%clk 0:02:30]}  Bd6 {[%clk 0:02:37]} 12. g5 {[%clk 0:02:26]}  Nd5 {[%clk 0:02:15]} 13. e4 {[%clk 0:02:22]}  N5b6 {[%clk 0:02:07]} 14. Bb3 {[%clk 0:02:15]}  Qe7 {[%clk 0:02:07]} 15. Kf1 {[%clk 0:02:03]}  O-O-O {[%clk 0:01:26]} 16. e5 {[%clk 0:02:02]}  Bc7 {[%clk 0:01:23]} 17. Ne4 {[%clk 0:02:02]}  Rhf8 {[%clk 0:01:06]} 18. Qg4 {[%clk 0:01:52]}  Kb8 {[%clk 0:01:01]} 19. Bf4 {[%clk 0:01:49]}  Nd5 {[%clk 0:00:57]} 20. Bg3 {[%clk 0:01:49]}  f5 {[%clk 0:00:55]} 21. exf6 {[%clk 0:01:33]}  gxf6 {[%clk 0:00:56]} 22. Bxc7+ {[%clk 0:01:33]}  Nxc7 {[%clk 0:00:56]} 23. Qg3 {[%clk 0:01:22]}  f5 {[%clk 0:00:55]} 24. Nc3 {[%clk 0:01:12]}  e5 {[%clk 0:00:54]} 25. Re1 {[%clk 0:01:11]}  Rde8 {[%clk 0:00:40]} 26. h4 {[%clk 0:01:10]}  Qb4 {[%clk 0:00:34]} 27. dxe5 {[%clk 0:01:03]}  f4 {[%clk 0:00:35]} 28. Qh3 {[%clk 0:00:49]}  Nxe5 {[%clk 0:00:34]} 29. Re4 {[%clk 0:00:48]}  Qd6 {[%clk 0:00:33]} 30. h5 {[%clk 0:00:45]}  f3 {[%clk 0:00:32]} 31. hxg6 {[%clk 0:00:40]}  Qxg6 {[%clk 0:00:30]} 32. Qg3 {[%clk 0:00:40]}  Qd6 {[%clk 0:00:27]} 33. Rh6 {[%clk 0:00:39]}  Qc5 {[%clk 0:00:22]} 34. g6 {[%clk 0:00:36]}  Rh8 {[%clk 0:00:17]} 35. Rxh8 {[%clk 0:00:30]}  Rxh8 {[%clk 0:00:18]} 36. Kg1 {[%clk 0:00:29]}  Nxg6 {[%clk 0:00:17]} 37. Qxg6 {[%clk 0:00:28]}  a5 {[%clk 0:00:17]} 38. Re3 {[%clk 0:00:23]}  a4 {[%clk 0:00:11]} 39. Bxa4 {[%clk 0:00:21]}  Nd5 {[%clk 0:00:10]} 40. Rxf3 {[%clk 0:00:20]}  Qd4 {[%clk 0:00:04]} 41. Qg3+ {[%clk 0:00:20]}  Ka7 {[%clk 0:00:04]} 42. Nxd5 {[%clk 0:00:19]}  cxd5 {[%clk 0:00:01]} 43. Bb3 {[%clk 0:00:19]}  Qxb2 {[%clk 0:00:01]} 44. Kg2 {[%clk 0:00:17]}  Qc1 {[%clk 0:00:02]} 45. Qg5 {[%clk 0:00:13]}  Qxg5+ {[%clk 0:00:01]} 46. Kf1 {[%clk 0:00:12]}  Qe5 {[%clk 0:00:02]} 47. Re3 {[%clk 0:00:12]}  Qa1+ {[%clk 0:00:02]} 48. Ke2 {[%clk 0:00:12]}  Qd4 {[%clk 0:00:03]} 49. Rd3 {[%clk 0:00:12]}  Qe5+ {[%clk 0:00:03]} 50. Kd2 {[%clk 0:00:12]}  Qb2+ {[%clk 0:00:04]} 51. Ke3 {[%clk 0:00:12]}  Re8+ {[%clk 0:00:04]} 52. Kf3 {[%clk 0:00:12]}  Qf6+ {[%clk 0:00:04]} 53. Kg2 {[%clk 0:00:13]}  Rg8+ {[%clk 0:00:05]} 54. Kf1 {[%clk 0:00:13]}  Rf8 {[%clk 0:00:06]} 55. f3 {[%clk 0:00:13]}  Qf5 {[%clk 0:00:06]} 56. Ke2 {[%clk 0:00:13]}  Re8+ {[%clk 0:00:06]} 57. Kd2 {[%clk 0:00:13]}  Qf4+ {[%clk 0:00:06]} 58. Kc3 {[%clk 0:00:13]}  Rc8+ {[%clk 0:00:07]} 59. Kb2 {[%clk 0:00:12]}  Qe5+ {[%clk 0:00:08]} 60. Ka3 {[%clk 0:00:11]}  d4 {[%clk 0:00:08]} 61. Rd1 {[%clk 0:00:08]}  Qc5+ {[%clk 0:00:08]} 62. Kb2 {[%clk 0:00:08]}  Qc3+ {[%clk 0:00:09]} 63. Kb1 {[%clk 0:00:09]}  d3 {[%clk 0:00:09]} 64. f4 {[%clk 0:00:09]}  d2 {[%clk 0:00:10]} 0-1


[Site "https://www.chess.com"]

[Event "Titled Tuesday Blitz October 25 Late 2022"]
[White "Sibilio, Mario"]
[Black "Banzea, Alexandru-Bogdan"]
[WhiteFideId "800422"]
[BlackFideId "1232622"]
[WhiteElo "2296"]
[BlackElo "2294"]
[Result "0-1"]
[Round "03"]
[TimeControl "180+1"]
[Date "2022.10.26"]
[WhiteClock "0:00:01"]
[BlackClock "0:00:11"]

1. Nf3 {[%clk 0:03:00]}  Nf6 {[%clk 0:02:59]} 2. d4 {[%clk 0:02:58]}  g6 {[%clk 0:03:00]} 3. c4 {[%clk 0:02:55]}  Bg7 {[%clk 0:02:59]} 4. e3 {[%clk 0:02:54]}  O-O {[%clk 0:02:59]} 5. Be2 {[%clk 0:02:54]}  d6 {[%clk 0:03:00]} 6. Nc3 {[%clk 0:02:53]}  Nbd7 {[%clk 0:03:01]} 7. O-O {[%clk 0:02:52]}  e5 {[%clk 0:03:01]} 8. Qc2 {[%clk 0:02:51]}  Re8 {[%clk 0:02:58]} 9. Rd1 {[%clk 0:02:50]}  e4 {[%clk 0:02:45]} 10. Nd2 {[%clk 0:02:49]}  Qe7 {[%clk 0:02:44]} 11. f3 {[%clk 0:02:33]}  exf3 {[%clk 0:02:33]} 12. Nxf3 {[%clk 0:02:31]}  Nf8 {[%clk 0:02:30]} 13. h3 {[%clk 0:02:27]}  Bf5 {[%clk 0:02:30]} 14. Bd3 {[%clk 0:02:26]}  Bxd3 {[%clk 0:02:28]} 15. Qxd3 {[%clk 0:02:25]}  Ne4 {[%clk 0:02:28]} 16. Nxe4 {[%clk 0:02:00]}  Qxe4 {[%clk 0:02:29]} 17. Qxe4 {[%clk 0:02:00]}  Rxe4 {[%clk 0:02:30]} 18. Bd2 {[%clk 0:01:52]}  Bh6 {[%clk 0:02:28]} 19. Kf2 {[%clk 0:01:51]}  Rae8 {[%clk 0:02:28]} 20. Re1 {[%clk 0:01:50]}  f5 {[%clk 0:02:22]} 21. g3 {[%clk 0:01:38]}  Nd7 {[%clk 0:02:17]} 22. Re2 {[%clk 0:01:23]}  Nf6 {[%clk 0:02:17]} 23. Rae1 {[%clk 0:01:23]}  R4e7 {[%clk 0:02:13]} 24. Kg2 {[%clk 0:01:21]}  Ne4 {[%clk 0:02:08]} 25. Bc1 {[%clk 0:01:20]}  Bg7 {[%clk 0:02:03]} 26. d5 {[%clk 0:00:45]}  Nc5 {[%clk 0:01:57]} 27. Rd1 {[%clk 0:00:43]}  a5 {[%clk 0:01:42]} 28. Nd4 {[%clk 0:00:39]}  Re4 {[%clk 0:01:34]} 29. Kf1 {[%clk 0:00:34]}  Bh6 {[%clk 0:01:09]} 30. Kf2 {[%clk 0:00:30]}  R4e7 {[%clk 0:00:50]} 31. Kf3 {[%clk 0:00:23]}  Bg7 {[%clk 0:00:42]} 32. b3 {[%clk 0:00:21]}  h5 {[%clk 0:00:42]} 33. h4 {[%clk 0:00:20]}  Bh6 {[%clk 0:00:42]} 34. Bd2 {[%clk 0:00:17]}  Kf7 {[%clk 0:00:42]} 35. Rde1 {[%clk 0:00:13]}  b6 {[%clk 0:00:35]} 36. Nc6 {[%clk 0:00:12]}  Re4 {[%clk 0:00:29]} 37. Nd4 {[%clk 0:00:11]}  Nd3 {[%clk 0:00:22]} 38. Rd1 {[%clk 0:00:10]}  Ne5+ {[%clk 0:00:22]} 39. Kg2 {[%clk 0:00:08]}  Ng4 {[%clk 0:00:20]} 40. Ne6 {[%clk 0:00:07]}  Bxe3 {[%clk 0:00:14]} 41. Bc3 {[%clk 0:00:02]}  Bh6 {[%clk 0:00:11]} 42. Rxe4 {[%clk 0:00:01]}  fxe4 {[%clk 0:00:11]} 0-1


[Site "https://www.chess.com"]

[Event "Titled Tuesday Blitz October 25 Late 2022"]
[White "Silva Rosas, Natalia"]
[Black "Sarkar, Justin"]
[WhiteFideId "3000575"]
[BlackFideId "2010011"]
[WhiteElo "1752"]
[BlackElo "2250"]
[Result "0-1"]
[Round "03"]
[TimeControl "180+1"]
[Date "2022.10.26"]
[WhiteClock "0:00:13"]
[BlackClock "0:00:08"]

1. e4 {[%clk 0:03:00]}  e5 {[%clk 0:02:58]} 2. d4 {[%clk 0:03:00]}  exd4 {[%clk 0:02:56]} 3. c3 {[%clk 0:03:00]}  Qe7 {[%clk 0:02:52]} 4. Ne2 {[%clk 0:02:45]}  Qxe4 {[%clk 0:02:39]} 5. cxd4 {[%clk 0:02:37]}  d5 {[%clk 0:02:27]} 6. Be3 {[%clk 0:02:24]}  c6 {[%clk 0:02:16]} 7. Nbc3 {[%clk 0:02:18]}  Qg6 {[%clk 0:02:01]} 8. Ng3 {[%clk 0:02:05]}  Bd6 {[%clk 0:01:51]} 9. Bd3 {[%clk 0:02:00]}  Qg4 {[%clk 0:01:46]} 10. Qb3 {[%clk 0:01:46]}  Ne7 {[%clk 0:01:28]} 11. h3 {[%clk 0:01:38]}  Qh4 {[%clk 0:01:23]} 12. Nce2 {[%clk 0:01:23]}  O-O {[%clk 0:01:18]} 13. O-O {[%clk 0:01:15]}  Nd7 {[%clk 0:01:13]} 14. Nf5 {[%clk 0:01:05]}  Nxf5 {[%clk 0:01:10]} 15. Bxf5 {[%clk 0:01:04]}  Nb6 {[%clk 0:00:59]} 16. Bxc8 {[%clk 0:00:59]}  Raxc8 {[%clk 0:00:57]} 17. f4 {[%clk 0:00:49]}  f5 {[%clk 0:00:50]} 18. Bf2 {[%clk 0:00:47]}  Qf6 {[%clk 0:00:47]} 19. Qg3 {[%clk 0:00:45]}  Rfe8 {[%clk 0:00:44]} 20. Nc3 {[%clk 0:00:40]}  Nc4 {[%clk 0:00:41]} 21. b3 {[%clk 0:00:38]}  Nd2 {[%clk 0:00:39]} 22. Rfd1 {[%clk 0:00:37]}  Ne4 {[%clk 0:00:37]} 23. Nxe4 {[%clk 0:00:36]}  Rxe4 {[%clk 0:00:32]} 24. Re1 {[%clk 0:00:33]}  Bxf4 {[%clk 0:00:27]} 25. Qf3 {[%clk 0:00:31]}  Rce8 {[%clk 0:00:26]} 26. Rxe4 {[%clk 0:00:29]}  fxe4 {[%clk 0:00:24]} 27. Qd1 {[%clk 0:00:22]}  e3 {[%clk 0:00:21]} 28. Be1 {[%clk 0:00:21]}  e2 {[%clk 0:00:18]} 29. Qd3 {[%clk 0:00:19]}  Be3+ {[%clk 0:00:17]} 30. Kh1 {[%clk 0:00:18]}  Qf1+ {[%clk 0:00:16]} 31. Kh2 {[%clk 0:00:19]}  Bg1+ {[%clk 0:00:08]} 32. Kg3 {[%clk 0:00:18]}  Re3+ {[%clk 0:00:08]} 33. Qxe3 {[%clk 0:00:17]}  Bxe3 {[%clk 0:00:08]} 34. Bd2 {[%clk 0:00:13]}  Qf4# {[%clk 0:00:08]} 0-1


[Site "https://www.chess.com"]

[Event "Titled Tuesday Blitz October 25 Late 2022"]
[White "Stoyanov, Tsvetan"]
[Black "Dilmukhametov, Artur"]
[WhiteFideId "2917173"]
[BlackFideId "24179922"]
[WhiteElo "2349"]
[BlackElo "2197"]
[Result "0-1"]
[Round "03"]
[TimeControl "180+1"]
[Date "2022.10.26"]
[WhiteClock "0:00:05"]
[BlackClock "0:01:12"]

1. e4 {[%clk 0:03:00]}  e6 {[%clk 0:02:55]} 2. d4 {[%clk 0:03:00]}  d5 {[%clk 0:02:55]} 3. Nd2 {[%clk 0:03:01]}  Nf6 {[%clk 0:02:55]} 4. e5 {[%clk 0:03:01]}  Nfd7 {[%clk 0:02:56]} 5. Bd3 {[%clk 0:03:02]}  c5 {[%clk 0:02:56]} 6. c3 {[%clk 0:03:02]}  Nc6 {[%clk 0:02:57]} 7. Ne2 {[%clk 0:03:03]}  cxd4 {[%clk 0:02:58]} 8. cxd4 {[%clk 0:03:03]}  f6 {[%clk 0:02:58]} 9. exf6 {[%clk 0:03:03]}  Nxf6 {[%clk 0:02:59]} 10. O-O {[%clk 0:03:01]}  Bd6 {[%clk 0:02:59]} 11. Nf3 {[%clk 0:03:02]}  O-O {[%clk 0:03:00]} 12. Bf4 {[%clk 0:02:53]}  Bxf4 {[%clk 0:03:00]} 13. Nxf4 {[%clk 0:02:54]}  Ne4 {[%clk 0:03:01]} 14. Qc1 {[%clk 0:02:52]}  Qf6 {[%clk 0:03:01]} 15. Nh5 {[%clk 0:02:46]}  Qg6 {[%clk 0:03:02]} 16. Ng3 {[%clk 0:02:44]}  Nxg3 {[%clk 0:03:02]} 17. Qd1 {[%clk 0:01:12]}  Ne4 {[%clk 0:02:48]} 18. Rc1 {[%clk 0:01:10]}  Bd7 {[%clk 0:02:39]} 19. Qe2 {[%clk 0:01:08]}  Rf4 {[%clk 0:02:26]} 20. Qe3 {[%clk 0:01:06]}  Raf8 {[%clk 0:02:24]} 21. Nd2 {[%clk 0:01:06]}  Qf6 {[%clk 0:02:01]} 22. Bxe4 {[%clk 0:00:31]}  dxe4 {[%clk 0:02:01]} 23. g3 {[%clk 0:00:17]}  Rg4 {[%clk 0:01:50]} 24. h3 {[%clk 0:00:15]}  Rg6 {[%clk 0:01:48]} 25. Nxe4 {[%clk 0:00:08]}  Qxd4 {[%clk 0:01:48]} 26. Qe2 {[%clk 0:00:09]}  Qb6 {[%clk 0:01:33]} 27. Rfd1 {[%clk 0:00:09]}  Nd4 {[%clk 0:01:31]} 28. Qd3 {[%clk 0:00:06]}  e5 {[%clk 0:01:30]} 29. Nc5 {[%clk 0:00:05]}  Bxh3 {[%clk 0:01:24]} 30. Qe4 {[%clk 0:00:05]}  Qxb2 {[%clk 0:01:16]} 31. Nd3 {[%clk 0:00:05]}  Qe2 {[%clk 0:01:12]} 32. Qd5+ {[%clk 0:00:06]}  Kh8 {[%clk 0:01:13]} 33. Nxe5 {[%clk 0:00:04]}  Qxe5 {[%clk 0:01:12]} 34. Kh1 {[%clk 0:00:05]}  Qxd5+ {[%clk 0:01:12]} 0-1


[Site "https://www.chess.com"]

[Event "Titled Tuesday Blitz October 25 Late 2022"]
[White "Timmermans, Mark"]
[Black "Danielyan, Vahe"]
[WhiteFideId "1026399"]
[BlackFideId "13304828"]
[WhiteElo "2460"]
[BlackElo "2421"]
[Result "0-1"]
[Round "03"]
[TimeControl "180+1"]
[Date "2022.10.26"]
[WhiteClock "0:00:03"]
[BlackClock "0:01:09"]

1. b4 {[%clk 0:03:00]}  Nf6 {[%clk 0:02:57]} 2. Bb2 {[%clk 0:02:58]}  e6 {[%clk 0:02:57]} 3. b5 {[%clk 0:02:58]}  a6 {[%clk 0:02:56]} 4. a4 {[%clk 0:02:59]}  axb5 {[%clk 0:02:56]} 5. axb5 {[%clk 0:03:00]}  Rxa1 {[%clk 0:02:56]} 6. Bxa1 {[%clk 0:03:00]}  Be7 {[%clk 0:02:57]} 7. c4 {[%clk 0:03:01]}  O-O {[%clk 0:02:57]} 8. e3 {[%clk 0:03:02]}  d5 {[%clk 0:02:58]} 9. Nf3 {[%clk 0:03:02]}  Nbd7 {[%clk 0:02:56]} 10. Be2 {[%clk 0:03:03]}  dxc4 {[%clk 0:02:56]} 11. Bxc4 {[%clk 0:03:04]}  Nb6 {[%clk 0:02:57]} 12. Be2 {[%clk 0:03:04]}  h6 {[%clk 0:02:50]} 13. O-O {[%clk 0:03:04]}  Bd7 {[%clk 0:02:47]} 14. Nc3 {[%clk 0:03:05]}  Nfd5 {[%clk 0:02:45]} 15. Qb3 {[%clk 0:03:04]}  Nxc3 {[%clk 0:02:45]} 16. Bxc3 {[%clk 0:03:05]}  Nd5 {[%clk 0:02:44]} 17. Bb2 {[%clk 0:03:02]}  Bd6 {[%clk 0:02:39]} 18. Ra1 {[%clk 0:02:58]}  Nb6 {[%clk 0:02:32]} 19. d4 {[%clk 0:02:50]}  Re8 {[%clk 0:02:27]} 20. Ne5 {[%clk 0:02:48]}  Qe7 {[%clk 0:02:17]} 21. Bf3 {[%clk 0:02:45]}  Rb8 {[%clk 0:02:17]} 22. Ra7 {[%clk 0:02:44]}  Bxe5 {[%clk 0:02:12]} 23. dxe5 {[%clk 0:02:44]}  Qc5 {[%clk 0:02:11]} 24. h3 {[%clk 0:02:05]}  Nd5 {[%clk 0:01:47]} 25. Ra5 {[%clk 0:01:42]}  b6 {[%clk 0:01:47]} 26. Ra7 {[%clk 0:01:13]}  Bxb5 {[%clk 0:01:47]} 27. Bd4 {[%clk 0:01:06]}  Qc1+ {[%clk 0:01:42]} 28. Kh2 {[%clk 0:01:05]}  Bc4 {[%clk 0:01:42]} 29. Qa4 {[%clk 0:00:56]}  c5 {[%clk 0:01:39]} 30. Qd7 {[%clk 0:00:42]}  Rf8 {[%clk 0:01:39]} 31. Ba1 {[%clk 0:00:41]}  Qc2 {[%clk 0:01:31]} 32. Bh5 {[%clk 0:00:13]}  Qf5 {[%clk 0:01:30]} 33. Bxf7+ {[%clk 0:00:10]}  Qxf7 {[%clk 0:01:20]} 34. Qa4 {[%clk 0:00:09]}  b5 {[%clk 0:01:15]} 35. Rxf7 {[%clk 0:00:03]}  bxa4 {[%clk 0:01:15]} 36. Ra7 {[%clk 0:00:04]}  Bb5 {[%clk 0:01:11]} 37. Ra5 {[%clk 0:00:03]}  Rb8 {[%clk 0:01:09]} 0-1


[Site "https://www.chess.com"]

[Event "Titled Tuesday Blitz October 25 Late 2022"]
[White "Tokhirjonova, Gulrukhbegim"]
[Black "Baskakov, Egor"]
[WhiteFideId "14203626"]
[BlackFideId "24197866"]
[WhiteElo "2236"]
[BlackElo "2211"]
[Result "0-1"]
[Round "03"]
[TimeControl "180+1"]
[Date "2022.10.26"]
[WhiteClock "0:00:23"]
[BlackClock "0:00:50"]

1. e4 {[%clk 0:02:59]}  c5 {[%clk 0:02:59]} 2. Nf3 {[%clk 0:02:59]}  Nf6 {[%clk 0:02:57]} 3. e5 {[%clk 0:02:58]}  Nd5 {[%clk 0:02:58]} 4. c4 {[%clk 0:02:57]}  Nc7 {[%clk 0:02:57]} 5. d4 {[%clk 0:02:57]}  cxd4 {[%clk 0:02:58]} 6. Nxd4 {[%clk 0:02:57]}  Nc6 {[%clk 0:02:59]} 7. Nxc6 {[%clk 0:02:53]}  bxc6 {[%clk 0:03:00]} 8. Nc3 {[%clk 0:02:53]}  g6 {[%clk 0:02:59]} 9. Bf4 {[%clk 0:02:52]}  Bg7 {[%clk 0:02:58]} 10. Be2 {[%clk 0:02:52]}  Ne6 {[%clk 0:02:58]} 11. Bg3 {[%clk 0:02:52]}  Rb8 {[%clk 0:02:58]} 12. Rb1 {[%clk 0:02:51]}  Qa5 {[%clk 0:02:58]} 13. O-O {[%clk 0:02:50]}  Bxe5 {[%clk 0:02:54]} 14. b4 {[%clk 0:02:31]}  Qc7 {[%clk 0:02:53]} 15. Ne4 {[%clk 0:02:17]}  O-O {[%clk 0:02:49]} 16. Qd2 {[%clk 0:02:13]}  f5 {[%clk 0:02:41]} 17. f4 {[%clk 0:01:56]}  Bg7 {[%clk 0:02:36]} 18. Ng5 {[%clk 0:01:53]}  d6 {[%clk 0:02:03]} 19. h4 {[%clk 0:01:44]}  Nxg5 {[%clk 0:02:01]} 20. hxg5 {[%clk 0:01:43]}  e5 {[%clk 0:02:02]} 21. c5 {[%clk 0:01:42]}  d5 {[%clk 0:02:01]} 22. b5 {[%clk 0:01:36]}  e4 {[%clk 0:01:56]} 23. Bf2 {[%clk 0:01:31]}  Be6 {[%clk 0:01:32]} 24. Rfc1 {[%clk 0:01:27]}  d4 {[%clk 0:01:27]} 25. Bxd4 {[%clk 0:01:26]}  Rfd8 {[%clk 0:01:26]} 26. Rb4 {[%clk 0:01:27]}  a5 {[%clk 0:01:10]} 27. bxa6 {[%clk 0:00:43]}  Rxb4 {[%clk 0:01:08]} 28. Qxb4 {[%clk 0:00:44]}  Bxd4+ {[%clk 0:01:07]} 29. Kh1 {[%clk 0:00:44]}  Qxf4 {[%clk 0:01:08]} 30. Qe1 {[%clk 0:00:29]}  Bf2 {[%clk 0:01:05]} 31. g3 {[%clk 0:00:29]}  Qxg3 {[%clk 0:00:54]} 32. Qf1 {[%clk 0:00:29]}  e3 {[%clk 0:00:54]} 33. Bc4 {[%clk 0:00:28]}  Qf3+ {[%clk 0:00:52]} 34. Kh2 {[%clk 0:00:27]}  Qf4+ {[%clk 0:00:50]} 35. Kh1 {[%clk 0:00:24]}  Qe4+ {[%clk 0:00:50]} 36. Kh2 {[%clk 0:00:24]}  Bxc4 {[%clk 0:00:50]} 37. Rxc4 {[%clk 0:00:24]}  Qe5+ {[%clk 0:00:50]} 38. Kg2 {[%clk 0:00:23]}  e2 {[%clk 0:00:50]} 0-1


[Site "https://www.chess.com"]